bitfinex-derivatives/quotes_ETHF0:USTF0_20250905
["timestamp","ask_amount","ask_price","bid_price","bid_amount"]
[1757068688869,3.4388,4415.8,4415.7,1.72029166]
[1757068689366,3.2078,4415.8,4415.7,1.72029166]
[1757068689560,3.4388,4415.8,4415.7,1.72029166]
[1757068693467,3.8346,4415.8,4415.7,1.72029166]
[1757068694073,3.6036,4415.8,4415.7,1.72029166]
[1757068694275,3.8346,4415.8,4415.7,1.72029166]
[1757068695068,4.2342,4415.8,4415.7,1.72029166]
[1757068695274,4.8337,4415.8,4415.7,1.72029166]
[1757068696075,4.8337,4415.8,4415.7,0.28149166]
[1757068697065,0.3958,4414.6,4414.5,0.6462]
[1757068697270,1.0254,4414.6,4414.5,1.0522]
[1757068697470,0.23,4414.6,4414.5,1.0522]
[1757068697674,0.23,4414.6,4414.5,1.6906]
[1757068697973,3.4388,4414.7,4414.6,1.4804]
[1757068698573,3.8874,4414.7,4414.6,1.4804]
[1757068699174,4.8595,4414.7,4414.6,1.0328]
[1757068699971,3.8874,4414.7,4414.6,1.4804]
[1757068700173,4.3303,4414.7,4414.6,1.4804]
[1757068700479,4.8595,4414.7,4414.6,1.4804]
[1757068700977,4.8595,4414.7,4414.6,1.0328]
[1757068701673,4.8595,4414.7,4414.6,0.6384]
[1757068703373,4.8595,4414.7,4414.6,1.0805]
[1757068707486,4.8595,4414.7,4414.0,0.2518]
[1757068707688,0.8915,4414.2,4414.1,1.5655]
[1757068710980,0.4486,4414.2,4414.1,1.5655]
[1757068718393,0.231,4414.3,4414.1,0.8897]
[1757068718588,0.231,4414.3,4414.2,1.5655]
[1757068719089,0.5236,4414.6,4414.2,0.8897]
[1757068719286,1.1215,4414.6,4414.5,1.8325]
[1757068719592,1.6451,4414.6,4414.5,0.6758]
[1757068720195,1.6451,4414.6,4414.5,1.1179]
[1757068720395,1.6451,4414.6,4414.5,1.3849]
[1757068720695,0.8915,4414.6,4414.5,1.8325]
[1757068720891,1.1215,4414.6,4414.5,1.8325]
[1757068721198,0.23,4414.7,4414.6,0.6758]
[1757068721397,0.23,4414.7,4414.6,1.5655]
[1757068722685,3.2078,4415.2,4414.6,1.5655]
[1757068722686,3.2078,4415.2,4415.1,0.6758]
[1757068722881,3.2078,4415.2,4415.1,1.5655]
[1757068722882,3.6564,4415.2,4415.1,1.5655]
[1757068723086,0.4486,4415.2,4415.1,1.5655]
[1757068723294,3.6564,4415.2,4415.1,1.5655]
[1757068724192,3.2078,4415.2,4415.1,1.5655]
[1757068724693,3.6564,4415.2,4415.1,1.5655]
[1757068725394,3.8864,4415.2,4415.1,1.5655]
[1757068726196,3.6564,4415.2,4415.1,1.5655]
[1757068730699,4.0934,4415.2,4415.1,1.5655]
[1757068730897,4.599,4415.2,4415.1,1.5655]
[1757068731097,4.599,4415.2,4415.1,1.1179]
[1757068732294,3.2078,4415.2,4414.6,0.6421]
[1757068732499,0.8771,4414.6,4414.5,1.7709]
[1757068732998,0.4401,4414.6,4414.5,1.7709]
[1757068734299,0.8771,4414.6,4414.5,1.7709]
[1757068734702,1.3827,4414.6,4414.5,1.7709]
[1757068734901,1.3827,4414.6,4414.5,0.6421]
[1757068735103,0.8771,4414.6,4414.5,1.3192]
[1757068735302,0.8771,4414.6,4414.5,1.753]
[1757068736405,1.3827,4414.6,4414.5,1.753]
[1757068736615,1.6127,4414.6,4414.5,0.6421]
[1757068737796,0.8771,4414.2,4414.1,1.0701]
[1757068738001,1.3827,4414.2,4414.1,1.0701]
[1757068738703,1.3827,4414.2,4414.1,0.6421]
[1757068738904,1.3827,4414.2,4414.1,1.0701]
[1757068739903,1.3827,4414.2,4414.1,0.6421]
[1757068740303,4.5905,4414.2,4414.1,0.6421]
[1757068741213,4.5905,4414.2,4414.1,1.5039]
[1757068741214,4.0849,4414.2,4414.1,1.5039]
[1757068741701,3.6479,4414.2,4414.1,1.5039]
[1757068743697,4.0849,4414.2,4414.1,1.5039]
[1757068743896,4.5905,4414.2,4414.1,1.0701]
[1757068744204,4.0849,4414.2,4414.1,1.5039]
[1757068744595,3.6479,4414.2,4414.1,1.5039]
[1757068744795,3.4378,4414.2,4414.1,1.5039]
[1757068746605,4.8205,4414.2,4414.1,1.5039]
[1757068746810,4.8205,4414.2,4414.1,0.6421]
[1757068747204,4.8205,4414.2,4414.1,1.0701]
[1757068747811,4.3149,4414.2,4414.1,1.0701]
[1757068748109,4.3149,4414.2,4414.1,1.5039]
[1757068749905,4.8205,4414.2,4414.1,1.5039]
[1757068750411,4.5905,4414.2,4414.1,1.5039]
[1757068750709,4.8205,4414.2,4414.1,1.5039]
[1757068751409,4.8205,4414.2,4414.1,1.0701]
[1757068751612,4.8205,4414.2,4414.1,0.6421]
[1757068752103,4.3149,4414.2,4413.6,0.6421]
[1757068752307,0.8771,4413.7,4413.6,1.5039]
[1757068752510,0.6701,4413.7,4413.6,1.5039]
[1757068752704,1.1071,4413.7,4413.6,1.5039]
[1757068753610,1.1071,4413.7,4413.6,0.6421]
[1757068753812,1.6127,4413.7,4413.6,1.0701]
[1757068754012,4.8205,4413.7,4413.6,1.0701]
[1757068754204,4.8205,4413.7,4413.6,0.6421]
[1757068755014,4.3149,4413.7,4413.2,0.6421]
[1757068755207,0.8771,4413.3,4413.2,1.5039]
[1757068755410,1.1071,4413.3,4413.2,1.5039]
[1757068758015,1.5895,4413.3,4413.2,0.6421]
[1757068758315,1.5895,4413.3,4413.2,1.0668]
[1757068759713,1.5895,4413.3,4413.2,0.6421]
[1757068759916,1.5895,4413.3,4413.2,1.0668]
[1757068760813,1.1071,4413.3,4413.2,1.481]
[1757068761114,1.5895,4413.3,4413.2,1.481]
[1757068762709,1.1071,4413.3,4413.2,1.481]
[1757068763614,0.23,4413.3,4413.2,1.481]
[1757068764012,0.4386,4413.6,4413.5,0.2562]
[1757068764215,0.6686,4413.6,4413.5,1.7344]
[1757068765020,0.6686,4413.6,4413.5,0.6393]
[1757068765021,1.5936,4413.6,4413.5,0.6393]
[1757068765319,0.4778,4413.5,4413.1,0.6393]
[1757068765521,0.8858,4413.2,4413.1,1.4782]
[1757068765715,0.6686,4413.2,4413.1,1.4782]
[1757068765921,0.6686,4413.2,4413.1,0.6393]
[1757068765922,1.5936,4413.2,4413.1,0.6393]
[1757068766113,0.8858,4413.2,4413.1,1.4782]
[1757068766312,0.6686,4413.2,4413.1,1.4782]
[1757068769615,1.5936,4413.2,4413.1,0.6393]
[1757068770421,4.8014,4413.2,4413.1,0.6393]
[1757068770617,4.3236,4413.2,4412.9,0.6393]
[1757068770824,1.3636,4413.0,4412.9,0.6393]
[1757068771324,1.3636,4413.0,4412.8,0.1722243]
[1757068772019,1.491,4413.0,4412.8,0.1722243]
[1757068772617,1.5936,4412.9,4412.8,0.1722243]
[1757068773325,0.8858,4412.2,4412.1,1.4782]
[1757068773524,1.1158,4412.2,4412.1,1.4782]
[1757068773825,0.6686,4412.2,4412.1,1.4782]
[1757068774328,0.23,4412.2,4412.1,1.4782]
[1757068775523,3.2078,4412.4,4412.2,0.6393]
[1757068775725,3.4378,4412.4,4412.3,1.4782]
[1757068776125,3.8764,4412.4,4412.3,1.4782]
[1757068776827,3.6464,4412.4,4412.3,1.4782]
[1757068777027,3.4378,4412.4,4412.3,1.4782]
[1757068777228,3.8764,4412.4,4412.3,1.4782]
[1757068778130,4.3236,4412.4,4412.3,1.4782]
[1757068779139,4.0936,4412.4,4412.3,1.4782]
[1757068779438,3.8764,4412.4,4412.3,1.4782]
[1757068780236,3.4378,4412.4,4412.3,1.4782]
[1757068782143,3.8764,4412.4,4412.3,1.4782]
[1757068782743,3.6464,4412.4,4412.3,1.4782]
[1757068782939,3.4378,4412.4,4412.3,1.4782]
[1757068783243,3.8764,4412.4,4412.3,1.4782]
[1757068783737,3.2078,4412.4,4412.3,1.4782]
[1757068784340,3.6464,4412.4,4412.3,1.4782]
[1757068785137,3.2078,4412.9,4412.4,0.6393]
[1757068785342,3.6464,4412.9,4412.8,1.4782]
[1757068785643,4.3236,4412.9,4412.8,1.4782]
[1757068786346,4.3236,4412.9,4412.8,0.6393]
[1757068786545,4.8014,4412.9,4412.8,0.6393]
[1757068786741,0.4778,4412.8,4412.6,0.6393]
[1757068786936,1.3636,4412.6,4412.5,0.6809]
[1757068787549,1.3636,4412.6,4412.5,1.3202]
[1757068788941,1.3636,4412.6,4412.5,0.8955]
[1757068789445,3.2078,4412.9,4412.8,0.8654]
[1757068789749,3.2078,4412.9,4412.8,1.4819]
[1757068789950,3.4378,4412.9,4412.8,1.4819]
[1757068790350,3.8668,4412.9,4412.8,1.4819]
[1757068793447,3.6368,4412.9,4412.8,1.4819]
[1757068793653,3.8668,4412.9,4412.8,1.4819]
[1757068795150,4.3046,4412.9,4412.8,1.4819]
[1757068795348,4.7657,4412.9,4412.8,1.4819]
[1757068795550,4.7657,4412.9,4412.8,1.0554]
[1757068796856,4.3046,4412.9,4412.8,1.4819]
[1757068798454,4.7657,4412.9,4412.8,1.4819]
[1757068798948,4.7657,4412.9,4412.8,1.0554]
[1757068799956,4.3046,4412.9,4412.8,1.4819]
[1757068800356,3.2078,4412.9,4412.8,1.4819]
[1757068800559,3.4378,4412.9,4412.8,1.4819]
[1757068801151,3.8668,4412.9,4412.8,1.4819]
[1757068801553,4.7657,4412.9,4412.8,1.4819]
[1757068802460,4.7657,4412.9,4412.8,0.6165]
[1757068803661,4.7657,4412.9,4412.6,0.6165]
[1757068803959,1.3279,4412.7,4412.6,0.6165]
[1757068804160,1.5579,4412.7,4412.6,0.6165]
[1757068804759,1.5579,4412.7,4412.6,1.0554]
[1757068804960,3.2078,4412.9,4412.7,0.6165]
[1757068805158,0.23,4413.1,4413.0,1.7312]
[1757068805756,3.6368,4413.4,4413.3,1.4819]
[1757068805955,3.8668,4413.4,4413.3,1.4819]
[1757068808561,4.7657,4413.4,4413.3,1.4819]
[1757068808757,4.3046,4413.4,4413.3,1.0554]
[1757068809566,4.7657,4413.4,4413.3,1.0554]
[1757068811260,4.7657,4413.4,4413.3,0.6165]
[1757068812166,4.7657,4413.4,4413.1,0.6165]
[1757068812361,1.3279,4413.2,4413.1,0.6165]
[1757068812562,1.5579,4413.2,4413.1,0.6165]
[1757068813261,0.23,4413.2,4413.1,1.4819]
[1757068813468,0.659,4413.2,4413.1,1.4819]
[1757068813962,1.0968,4413.2,4413.1,1.0554]
[1757068814264,1.5579,4413.2,4413.1,0.6165]
[1757068814460,1.5579,4413.2,4412.6,0.6165]
[1757068814664,1.5579,4413.2,4413.1,0.4389]
[1757068814861,1.0968,4413.2,4413.1,1.4819]
[1757068817367,0.659,4413.2,4413.1,1.4819]
[1757068817669,0.23,4413.2,4413.1,0.8654]
[1757068818270,0.23,4413.2,4413.1,1.4533]
[1757068820170,0.64,4413.2,4413.1,1.4533]
[1757068820567,0.41,4413.2,4413.1,1.4533]
[1757068821962,3.4378,4413.4,4413.1,1.4533]
[1757068822271,3.4378,4413.4,4413.2,0.5879]
[1757068822473,3.8478,4413.4,4413.3,1.3839]
[1757068822764,3.2078,4413.4,4413.3,1.3839]
[1757068827469,1.0576,4413.6,4413.5,1.6264]
[1757068827666,1.4933,4413.6,4413.5,1.2305]
[1757068827862,1.4933,4413.6,4413.5,0.8304]
[1757068828173,1.0576,4413.6,4413.1,0.5879]
[1757068828371,0.8276,4413.1,4413.0,3.8572]
[1757068828573,0.8276,4413.1,4413.0,4.2531]
[1757068828871,0.8276,4413.1,4413.0,4.841]
[1757068830075,1.2633,4413.1,4413.0,4.841]
[1757068830368,1.2633,4413.1,4413.0,1.6332]
[1757068830574,0.8276,4412.8,4412.6,0.23]
[1757068830769,0.8276,4412.7,4412.1,3.2078]
[1757068830974,1.2633,4412.1,4412.0,0.6492]
[1757068831174,1.2633,4412.1,4412.0,0.2491]
[1757068831374,1.2633,4412.1,4412.0,0.837]
[1757068831875,1.2633,4412.1,4412.0,0.5879]
[1757068833076,1.2633,4412.1,4412.0,1.2305]
[1757068833378,0.8276,4412.1,4412.0,1.2305]
[1757068835280,3.2078,4412.4,4412.1,0.5879]
[1757068835578,0.64,4412.3,4412.2,1.3839]
[1757068836167,1.0576,4412.3,4412.2,1.3839]
[1757068836368,1.4933,4412.3,4412.2,0.5879]
[1757068839374,1.2633,4412.1,4412.0,0.5879]
[1757068841678,1.2633,4412.1,4411.5,0.2425]
[1757068841886,1.2633,4411.7,4411.6,0.988]
[1757068842386,0.8276,4411.7,4411.6,1.3839]
[1757068844084,1.2633,4411.7,4411.6,1.3839]
[1757068844382,1.2633,4411.7,4411.6,0.988]
[1757068845585,0.8276,4411.7,4411.6,1.3839]
[1757068847686,1.2633,4411.7,4411.6,0.5879]
[1757068847882,1.2633,4411.7,4411.6,0.988]
[1757068848087,0.8276,4411.7,4411.6,1.3839]
[1757068848890,1.2442,4411.7,4411.6,1.3839]
[1757068849279,0.8276,4411.7,4411.6,1.3839]
[1757068850283,1.0576,4411.7,4411.6,1.3839]
[1757068850689,1.4742,4411.7,4411.6,0.988]
[1757068851386,1.4742,4411.7,4411.1,0.6257]
[1757068851688,0.8073,4411.2,4411.1,1.0385]
[1757068852088,0.8073,4411.2,4411.1,1.4645]
[1757068852591,1.2239,4411.2,4411.1,0.6257]
[1757068854192,1.2239,4411.2,4411.1,1.0385]
[1757068855292,1.2239,4411.2,4411.1,0.6257]
[1757068855995,1.2239,4411.2,4411.1,1.0385]
[1757068856198,0.8073,4411.2,4411.1,1.0385]
[1757068856694,1.0373,4411.2,4411.1,1.0385]
[1757068857999,0.6503,4411.2,4411.1,1.4645]
[1757068858193,0.4203,4411.2,4411.1,1.4645]
[1757068858590,0.6503,4411.2,4411.1,1.4645]
[1757068860090,0.4203,4411.2,4411.1,1.4645]
[1757068860294,3.6281,4411.6,4411.5,1.0833]
[1757068860597,3.4378,4411.6,4411.5,1.709]
[1757068860892,3.2078,4412.1,4411.5,1.709]
[1757068861096,3.2078,4412.1,4412.0,0.2445]
[1757068861298,3.4378,4412.1,4412.0,1.709]
[1757068862400,3.2078,4412.7,4412.6,1.4645]
[1757068862599,3.4378,4412.7,4412.6,1.4645]
[1757068862899,3.2078,4413.2,4413.1,1.4645]
[1757068863801,0.4203,4413.6,4413.5,0.2445]
[1757068864001,0.6503,4413.6,4413.5,1.709]
[1757068866906,0.4203,4413.6,4413.5,1.709]
[1757068867403,0.6503,4413.6,4413.5,1.709]
[1757068867604,1.0373,4413.6,4413.5,1.709]
[1757068870209,0.6212,4413.4,4412.5,0.2445]
[1757068870409,4.6363,4413.1,4413.0,0.4128]
[1757068870708,4.8663,4413.1,4413.0,0.4128]
[1757068873612,0.2322,4413.0,4412.1,0.6257]
[1757068873917,1.4285,4412.9,4412.1,0.22663]
[1757068874120,1.0373,4412.8,4412.7,0.4128]
[1757068874818,1.6585,4412.8,4412.7,0.4128]
[1757068875120,1.6585,4412.8,4412.7,1.4645]
[1757068877125,1.4285,4412.8,4412.7,1.4645]
[1757068877315,1.6585,4412.8,4412.7,1.4645]
[1757068878419,1.0415,4412.8,4412.7,1.4645]
[1757068878620,0.8415,4413.0,4412.7,0.8388]
[1757068878824,0.6115,4412.9,4412.8,0.5872]
[1757068879019,1.008,4412.9,4412.8,1.3585]
[1757068880528,1.238,4412.9,4412.8,1.3585]
[1757068881225,1.618,4412.9,4412.8,0.7713]
[1757068881733,1.618,4412.9,4412.8,1.3585]
[1757068883519,0.6115,4413.4,4413.0,0.2445]
[1757068883722,0.6115,4413.4,4413.3,0.7713]
[1757068883926,0.6115,4413.4,4413.3,1.3585]
[1757068884121,3.2078,4413.6,4413.4,0.5872]
[1757068884321,3.2078,4413.6,4413.5,1.3585]
[1757068884823,3.8193,4413.6,4413.5,1.3585]
[1757068885126,3.2078,4413.6,4413.5,1.3585]
[1757068885331,3.8193,4413.6,4413.5,1.3585]
[1757068885522,4.2158,4413.6,4413.5,1.3585]
[1757068885821,1.008,4413.6,4413.5,1.3585]
[1757068887429,1.388,4413.6,4413.5,1.3585]
[1757068889628,1.388,4413.6,4413.5,0.7713]
[1757068891026,1.388,4413.6,4413.5,1.3585]
[1757068891632,1.388,4413.6,4413.5,0.7713]
[1757068892127,1.388,4413.6,4413.5,1.3585]
[1757068892528,1.388,4413.6,4413.5,0.7713]
[1757068893723,1.388,4413.6,4413.5,1.3585]
[1757068894230,0.6115,4413.6,4413.5,1.3585]
[1757068894730,1.008,4413.6,4413.5,1.3585]
[1757068895034,0.6115,4414.1,4414.0,1.3585]
[1757068896533,1.008,4414.1,4414.0,1.3585]
[1757068897629,1.388,4414.1,4414.0,0.3907]
[1757068898133,1.388,4414.1,4414.0,1.3585]
[1757068898632,0.2357,4414.0,4413.4,3.4378]
[1757068898936,1.0122,4414.0,4413.9,1.3585]
[1757068899436,1.6237,4414.0,4413.9,1.3585]
[1757068900034,1.388,4414.0,4413.9,1.3585]
[1757068900437,1.6237,4414.0,4413.9,1.3585]
[1757068900735,1.6237,4414.0,4413.9,0.7713]
[1757068901133,1.6237,4414.0,4413.9,1.3585]
[1757068902027,1.6237,4414.0,4413.5,0.8172]
[1757068902235,0.2357,4414.0,4413.5,0.8172]
[1757068902436,1.388,4413.6,4413.5,1.5885]
[1757068902836,1.008,4413.6,4413.5,1.5885]
[1757068903439,1.008,4413.6,4413.5,1.3585]
[1757068904844,0.6115,4413.9,4413.5,0.7713]
[1757068905035,1.008,4413.9,4413.8,0.7713]
[1757068905236,1.008,4413.9,4413.8,1.3585]
[1757068905536,1.388,4413.9,4413.8,1.3585]
[1757068907045,0.6115,4413.9,4413.8,1.3585]
[1757068911146,1.02,4413.9,4413.8,1.3585]
[1757068911347,1.4271,4413.9,4413.8,1.3585]
[1757068912045,1.4271,4413.9,4413.8,0.7713]
[1757068912247,1.4271,4413.9,4413.6,0.23]
[1757068912655,1.4143,4413.9,4413.8,1.3576]
[1757068912946,1.4143,4413.9,4413.8,0.7753]
[1757068913149,1.4143,4413.9,4413.8,0.3979]
[1757068913650,1.0589,4413.5,4413.4,3.6057]
[1757068913849,1.6576,4413.5,4413.4,4.7954]
[1757068914545,1.0058,4413.5,4413.4,4.7954]
[1757068914750,0.2433,4414.0,4413.5,0.5823]
[1757068914951,1.0589,4414.0,4413.9,0.3979]
[1757068915648,1.6576,4414.0,4413.9,0.3979]
[1757068917250,1.6576,4414.0,4413.9,1.3576]
[1757068917546,1.0589,4414.0,4413.4,3.61562]
[1757068917741,0.5987,4413.5,4413.4,4.7954]
[1757068917944,0.5987,4413.9,4413.4,4.2131]
[1757068918149,1.0589,4414.0,4413.9,0.3979]
[1757068918344,1.0589,4414.0,4413.9,0.9802]
[1757068918650,1.6576,4414.0,4413.9,0.9802]
[1757068919653,1.6576,4414.0,4413.9,0.3979]
[1757068920253,1.6576,4414.0,4413.6,0.5823]
[1757068920753,1.6576,4414.0,4413.9,0.3979]
[1757068921356,1.6576,4414.0,4413.6,0.5823]
[1757068922259,0.5987,4413.9,4413.8,0.3979]
[1757068922557,0.8156,4413.9,4413.8,0.3979]
[1757068922759,1.4143,4413.9,4413.8,0.3979]
[1757068924060,1.4143,4413.9,4413.5,0.5823]
[1757068924354,0.842,4413.5,4413.4,4.7954]
[1757068924560,1.6576,4413.5,4413.4,4.7954]
[1757068924956,0.2433,4414.0,4413.4,8.43968]
[1757068925164,1.4143,4413.6,4413.5,1.3576]
[1757068925762,1.4143,4413.6,4413.5,0.7753]
[1757068925963,1.4143,4413.6,4413.5,1.0053]
[1757068927872,1.4143,4413.6,4413.5,1.5876]
[1757068928373,0.5987,4413.6,4413.5,1.5876]
[1757068930781,0.5987,4414.4,4413.5,0.3779]
[1757068931072,0.2433,4414.0,4413.9,3.6057]
[1757068931373,1.6576,4414.0,4413.9,4.7954]
[1757068932969,1.0072,4414.0,4413.9,4.7954]
[1757068933274,1.6576,4414.0,4413.9,4.7954]
[1757068934473,1.4143,4414.0,4413.9,5.20317]
[1757068934775,1.0072,4414.0,4413.9,5.20317]
[1757068934976,1.0072,4414.0,4413.9,4.7954]
[1757068935775,1.6576,4414.0,4413.9,1.5876]
[1757068936174,1.6576,4414.0,4413.9,1.0053]
[1757068939574,1.6576,4414.0,4413.9,1.593]
[1757068940076,1.6576,4414.0,4413.9,1.363]
[1757068940273,1.6576,4414.0,4413.9,1.593]
[1757068940572,1.6576,4414.0,4413.9,1.363]
[1757068940877,1.6576,4414.0,4413.9,1.0053]
[1757068941379,1.6576,4414.0,4413.9,0.6279]
[1757068942068,1.6576,4414.0,4413.9,1.5888]
[1757068942773,1.6576,4414.0,4413.9,0.6279]
[1757068942978,1.6576,4414.0,4413.9,0.3979]
[1757068943374,1.6576,4414.0,4413.6,0.5877]
[1757068943678,1.6576,4414.0,4413.7,0.23]
[1757068944068,1.6576,4414.0,4413.6,0.23]
[1757068945070,1.6576,4414.0,4413.6,0.6378]
[1757068945276,1.3229,4413.9,4413.8,0.4071]
[1757068946667,1.3229,4413.9,4413.8,1.368]
[1757068947679,0.9339,4414.1,4414.0,1.77576]
[1757068947978,0.9339,4414.1,4414.0,4.98356]
[1757068948279,1.3229,4414.1,4414.0,4.98356]
[1757068949180,0.9339,4414.1,4414.0,4.98356]
[1757068949782,0.9339,4414.1,4414.0,4.5758]
[1757068951485,1.3229,4414.1,4414.0,4.5758]
[1757068952486,1.3229,4414.1,4414.0,3.6149]
[1757068952980,1.3229,4414.1,4414.0,3.9881]
[1757068953185,1.3229,4414.1,4414.0,3.6149]
[1757068953685,0.2268,4414.0,4413.3,3.7955]
[1757068953889,1.5497,4413.5,4413.4,0.6371]
[1757068954086,1.5497,4413.5,4413.4,1.598]
[1757068955590,1.5497,4413.5,4413.4,2.00582]
[1757068955789,0.5563,4413.5,4413.4,2.00582]
[1757068955991,0.5563,4413.9,4413.4,1.41812]
[1757068956288,0.9934,4414.0,4413.9,0.7803]
[1757068956783,1.5497,4414.0,4413.9,0.7803]
[1757068959082,1.5497,4414.0,4413.9,1.368]
[1757068962488,1.5497,4414.0,4413.9,0.4071]
[1757068965288,0.9934,4413.5,4413.4,3.6149]
[1757068965488,1.5497,4413.5,4413.4,3.8449]
[1757068966292,1.5497,4413.5,4413.4,3.6149]
[1757068966685,0.7666,4413.1,4413.0,2.80587703]
[1757068966890,1.3229,4413.1,4413.0,2.80587703]
[1757068969996,1.3229,4413.1,4413.0,3.18157703]
[1757068972594,1.3229,4413.1,4413.0,3.56997703]
[1757068972796,1.3229,4413.1,4413.0,4.14827703]
[1757068974995,3.4346,4414.0,4413.1,0.5783]
[1757068975197,0.3923,4414.0,4413.9,1.3424]
[1757068975594,0.9688,4414.0,4413.9,1.3424]
[1757068976704,1.5758,4414.0,4413.9,1.3424]
[1757068978006,1.5758,4414.0,4413.9,0.7641]
[1757068978709,1.5758,4414.0,4413.9,0.3757]
[1757068979803,1.5758,4414.0,4413.9,1.3424]
[1757068983922,1.5758,4414.0,4413.9,0.7641]
[1757068986421,1.5758,4414.0,4413.9,1.3424]
[1757068987230,1.5758,4414.0,4413.8,0.229]
[1757068989537,1.5758,4414.0,4413.9,0.3757]
[1757068990536,1.5758,4414.0,4413.8,0.229]
[1757068990935,0.9993,4414.0,4413.4,3.2078]
[1757068991131,1.3577,4413.1,4413.0,4.14827703]
[1757068991337,1.3577,4413.1,4413.0,3.56997703]
[1757068993441,1.3577,4413.1,4413.0,4.14827703]
[1757068997141,1.3577,4413.1,4413.0,3.79897703]
[1757068997440,1.3577,4413.1,4413.0,3.18157703]
[1757068998741,1.3577,4413.1,4413.0,2.80587703]
[1757068999844,0.5387,4412.9,4412.8,0.3908]
[1757069000052,1.3071,4412.9,4412.8,0.3908]
[1757069002447,1.3071,4412.9,4412.8,1.3013]
[1757069007350,1.3071,4412.9,4412.8,0.7564]
[1757069009253,0.5387,4413.4,4412.9,0.5449]
[1757069009444,1.3071,4413.6,4413.5,0.7564]
[1757069010049,1.3071,4413.6,4413.5,1.3013]
[1757069010249,1.3071,4413.6,4413.5,0.7564]
[1757069010646,1.3071,4413.6,4413.5,0.3908]
[1757069011754,1.3071,4413.1,4413.0,0.9854]
[1757069012054,1.3071,4413.1,4413.0,1.5303]
[1757069013653,1.3071,4413.1,4413.0,1.3013]
[1757069014554,1.3071,4413.1,4413.0,0.3908]
[1757069016653,0.3735,4412.6,4412.5,4.5091]
[1757069016851,1.3071,4412.6,4412.5,4.7381]
[1757069017150,1.3071,4412.6,4412.5,4.5091]
[1757069019256,1.3071,4412.6,4412.5,3.5986]
[1757069019557,1.3071,4412.6,4412.5,3.2078]
[1757069021754,4.5149,4412.6,4412.0,0.5449]
[1757069021956,1.3071,4412.1,4412.0,1.3013]
[1757069024856,0.5387,4412.9,4412.4,0.7564]
[1757069025062,0.5387,4412.9,4412.8,0.7564]
[1757069025253,0.5387,4412.9,4412.8,1.3013]
[1757069025753,0.9122,4412.9,4412.8,1.3013]
[1757069027164,1.3071,4412.9,4412.8,1.3013]
[1757069027557,1.3071,4412.9,4412.8,0.7564]
[1757069028265,1.3071,4412.9,4412.8,0.3908]
[1757069028465,1.3071,4412.9,4412.8,0.761]
[1757069028763,1.3071,4412.9,4412.8,1.3264]
[1757069030262,3.4368,4413.6,4413.0,0.6851]
[1757069030463,0.7569,4413.5,4413.2,3.2078]
[1757069030763,0.5344,4413.8,4413.4,0.40782]
[1757069031065,0.5344,4413.9,4413.5,0.229]
[1757069031265,0.8944,4413.9,4413.5,0.229]
[1757069031467,0.5344,4413.8,4413.7,3.2078]
[1757069031659,0.8944,4413.8,4413.7,3.2078]
[1757069032169,0.8944,4413.8,4413.7,3.48722199]
[1757069032466,1.2582,4413.8,4413.7,3.48722199]
[1757069032674,1.2582,4413.8,4413.7,0.27942199]
[1757069038262,5.48476,4413.8,4412.6,0.63689]
[1757069038464,1.1169,4413.0,4412.9,0.7256]
[1757069040567,1.4807,4413.0,4412.9,0.3554]
[1757069044877,1.4807,4413.0,4412.6,0.229]
[1757069045284,1.4807,4413.0,4412.9,0.3554]
[1757069047279,0.7238,4412.8,4412.7,0.229]
[1757069047478,1.2582,4412.8,4412.7,0.229]
[1757069047688,1.2582,4412.8,4412.7,0.5844]
[1757069047977,1.2582,4412.8,4412.5,3.2078]
[1757069048180,0.5344,4412.7,4412.6,0.229]
[1757069048479,1.2582,4412.7,4412.6,0.6369]
[1757069048686,1.2582,4412.7,4412.6,0.9923]
[1757069048986,1.2582,4412.7,4412.6,1.3625]
[1757069049177,0.5344,4412.7,4412.6,1.6418]
[1757069049378,0.2225,4413.0,4412.6,1.6418]
[1757069049379,0.5825,4413.5,4413.4,0.7256]
[1757069049676,1.4807,4413.5,4413.4,0.7256]
[1757069052488,0.5344,4413.4,4413.3,3.2078]
[1757069052785,1.2582,4413.2,4413.1,0.229]
[1757069053482,1.2582,4413.2,4413.1,0.5844]
[1757069053681,0.5344,4413.2,4413.1,1.36245]
[1757069053880,0.8944,4413.2,4413.1,1.64175]
[1757069054184,0.8944,4413.2,4413.1,0.9546]
[1757069054385,1.2582,4413.2,4413.1,0.9546]
[1757069054682,1.2582,4413.2,4413.1,0.5844]
[1757069055388,1.2582,4413.2,4413.1,0.99225]
[1757069055580,1.2582,4413.2,4413.1,0.76325]
[1757069055781,1.2582,4413.2,4413.1,0.99225]
[1757069055983,1.2582,4413.2,4413.1,0.3554]
[1757069056184,1.2582,4413.2,4413.1,0.229]
[1757069060988,0.2094,4413.0,4412.8,3.2078]
[1757069061194,1.2783,4412.9,4412.8,3.2078]
[1757069062703,1.2783,4412.9,4412.8,3.61568]
[1757069063811,1.2783,4412.9,4412.8,3.2078]
[1757069065801,1.2783,4412.9,4412.8,3.557]
[1757069069503,1.2783,4412.9,4412.8,3.96488]
[1757069070004,1.2783,4412.9,4412.8,3.557]
[1757069072813,1.2783,4412.9,4412.8,3.96488]